[Event "26th Womens ECCC 2022"]
[Site "Mayrhofen"]
[Date "2022.10.06"]
[Round "4.31"]
[White "Thorsteinsdottir, Hallgerdur"]
[Black "Peglau, Mirjam"]
[Result "1-0"]
[ECO "C07"]
[WhiteElo "1959"]
[BlackElo "1886"]
[Annotator "TA"]
[PlyCount "120"]
[EventDate "2022.10.03"]
[EventType "team-tourn"]
[EventCountry "AUT"]
[SourceTitle "playchess.com"]
[Source "ChessBase"]
[SourceQuality "1"]
[TimeControl "40/5400+30:1800+30"]

{[%evp 9,120,0,-4,0,-1,-12,-12,-27,-11,-31,-10,-12,-14,-16,-16,-18,-17,-28,-18,-39,-35,-47,-33,-42,-42,-55,-48,-44,-39,-39,-42,-60,-48,-53,-25,-15,-25,-22,-21,-18,-22,-22,-8,-8,0,-17,0,-15,0,0,0,-16,0,0,0,4,9,8,8,7,8,9,12,-85,0,0,177,168,174,158,180,184,495,150,652,263,264,256,248,254,372,365,351,328,455,459,487,482,541,529,501,621,631,630,536,595,537,558,485,387,697,666,728,689,608,533,843,774,1295,1278,29982,29983,29983]} 1. e4 {[%emt 0:00:05]} e6 {[%emt 0:00:03]} 2. d4 {[%emt 0:00:08]} d5 {[%emt 0:00:01]} 3. Nd2 {[%emt 0:00:13]} c5 {[%emt 0:00:03]} 4. Ngf3 {[%emt 0:00:37]} cxd4 {[%emt 0:00:15]} 5. Nxd4 {[%emt 0:00:58]} Nc6 {[%emt 0:00:06]} 6. Nxc6 {[%emt 0:09:47] C07: French Tarrasch: 3...c5, 4 Ngf3 and 4 exd5 Qxd5.} bxc6 {[%emt 0:00:02]} 7. exd5 {[%emt 0:00:15]} cxd5 {[%emt 0:02:29]} 8. Bd3 {[%emt 0:00:59] The position is equal.} Nf6 {[%emt 0:00:54]} 9. O-O {[%emt 0:10:16]} Be7 {[%emt 0:01:27]} 10. Nf3 {[%emt 0:02:45]} O-O {[%emt 0:01:53]} 11. Re1 {[%emt 0:06:54] [#]} Qb6 $146 {[%emt 0:02:24]} ({Predecessor:} 11... Bb7 12. b3 Rc8 13. Bb2 Nd7 14. Rc1 Bf6 15. Bxf6 Qxf6 16. Be2 e5 17. c4 e4 {0-1 (88) Rozman,M (2141)-Berend,E (2332) Bled 2018}) 12. Qe2 {[%emt 0:11:55]} a5 {[%emt 0:02:54]} 13. Ne5 {[%emt 0:01:04]} Ba6 {[%emt 0:03:28]} 14. Bg5 {[%emt 0:05:44]} Bxd3 {[%emt 0:07:30]} 15. Nxd3 {[%emt 0:00:28]} h6 {[%emt 0:03:07]} 16. Bh4 {[%emt 0:00:49][%cal Bg5h4,Bh4g3,Bg3e5][%mdl 32]} Rac8 {[%emt 0:02:22]} 17. c3 {[%emt 0:06:34]} Rc4 {[%emt 0:13:20]} 18. Bg3 {[%emt 0:00:44]} Ne4 {[%emt 0:01:54]} 19. Be5 {[%emt 0:01:48]} Bf6 {[%emt 0:03:08]} 20. Qe3 {[%emt 0:12:45]} Qxe3 {[%emt 0:05:17]} 21. Rxe3 {[%emt 0:00:12]} Bxe5 {[%emt 0:02:41]} 22. Nxe5 {[%emt 0:00:12]} Rc7 {[%emt 0:00:03]} 23. c4 {[%emt 0:04:06]} Nf6 {[%emt 0:04:01]} 24. cxd5 {[%emt 0:01:17]} Nxd5 {[%emt 0:00:01]} 25. Ra3 {[%emt 0:02:07]} Rfc8 {[%emt 0:00:47] [#] ( -> ...Rc1+)} 26. g3 {[%emt 0:01:20]} Rc2 {[%emt 0:03:37]} 27. b3 {[%emt 0:04:08]} R2c5 {[%emt 0:14:44]} 28. Nd3 {[%emt 0:04:43]} Rc3 {[%emt 0:03:35]} 29. Rd1 {[%emt 0:04:42]} Ra8 {[%emt 0:04:36]} 30. Ra4 {[%emt 0:00:54]} Rc2 {[%emt 0:02:06]} 31. Rc1 {[%emt 0:01:16]} Rd2 {[%emt 0:02:11]} 32. Ne5 {[%emt 0:00:34]} Nb6 {[%emt 0:02:09]} 33. Nc4 {[%emt 0:01:27]} Nxc4 {[%emt 0:01:26]} 34. Rcxc4 $11 {[%emt 0:01:20][%mdl 4096] Endgame KRR-KRR} Rd5 {[%emt 0:04:54] Against Rc5} 35. b4 {[%emt 0:00:57]} Kh7 {[%emt 0:00:22]} 36. Rc5 {[%emt 0:00:29]} (36. Rc7 $11) 36... Rxc5 {[%emt 0:00:41]} (36... axb4 $17 37. Rxa8 Rxc5) 37. bxc5 $17 {[%emt 0:00:09] KR-KR} Ra6 $2 {[%emt 0:00:23] [#]} (37... Kg6 $11) 38. Kf1 $1 $18 {[%emt 0:02:41]} Kg6 {[%emt 0:00:07]} 39. Ke2 {[%emt 0:00:46]} e5 {[%emt 0:04:11]} 40. Kd3 {[%emt 0:01:30] Hoping for Kc4.} Kg5 $2 {[%emt 0:01:28]} (40... Kf6 41. Kc4 Ke6) 41. h3 $2 {[%emt 0:09:40]} (41. Kc4 $18 {is the precise move to win.}) 41... g6 $2 {[%emt 0:09:20] A mistake that costs the game.} (41... Kf6 $16 42. Kc4 Ke6) 42. Ke4 {[%emt 0:02:02]} (42. Kc4 $142) 42... Kf6 {[%emt 0:04:05]} 43. Kd5 {[%emt 0:01:36]} Ke7 {[%emt 0:00:26]} 44. Kxe5 {[%emt 0:09:21]} f6+ {[%emt 0:04:27]} (44... g5 $142 45. Kd5 Kd8) 45. Kd5 {[%emt 0:00:18]} Kd7 {[%emt 0:00:01] Inhibits c6+.} 46. Rh4 {[%emt 0:03:08]} Re6 {[%emt 0:05:04]} 47. Rxh6 {[%emt 0:00:26]} Re5+ {[%emt 0:00:09]} 48. Kc4 {[%emt 0:01:15]} ({Less strong is} 48. Kd4 Re2 49. Rxg6 Rxf2 $18) 48... Kc6 {[%emt 0:00:21]} 49. Rxg6 {[%emt 0:00:37]} Rxc5+ {[%emt 0:00:01]} 50. Kd3 {[%emt 0:01:39]} Rf5 {[%emt 0:03:52]} 51. f4 {[%emt 0:00:06]} Kd5 {[%emt 0:00:06]} 52. Rg8 {[%emt 0:00:47]} Rh5 {[%emt 0:01:19]} 53. h4 {[%emt 0:00:14]} Ke6 {[%emt 0:08:13]} 54. Kc4 {[%emt 0:00:35] Prevents Rb5.} Kd6 $2 {[%emt 0:01:19]} (54... a4 55. a3 Rh7) 55. a4 {[%emt 0:01:34]} Rc5+ {[%emt 0:00:20]} 56. Kd4 {[%emt 0:00:29] White threatens Rd8+ and mate.} Rd5+ {[%emt 0:00:27]} 57. Ke4 {[%emt 0:00:10] Rd8+ would kill now.} Rh5 {[%emt 0:00:39]} 58. Rb8 {[%emt 0:00:36]} Kc6 {[%emt 0:01:05]} 59. Rb5 {[%emt 0:02:52]} Rxb5 {[%emt 0:00:19]} 60. axb5+ {[%emt 0:00:04]} Kxb5 {Weighted Error Value: White=0.22 (precise) /Black=0.43} 1-0

[Event "26th Womens ECCC 2022"]
[Site "Mayrhofen"]
[Date "2022.10.06"]
[Round "4.32"]
[White "Peglau, Sarah"]
[Black "Thorsteinsdottir, Gudlaug"]
[Result "0-1"]
[ECO "D30"]
[WhiteElo "1794"]
[BlackElo "2014"]
[Annotator "TA"]
[PlyCount "55"]
[EventDate "2022.10.03"]
[EventType "team-tourn"]
[EventCountry "AUT"]
[SourceTitle "playchess.com"]
[Source "ChessBase"]
[SourceQuality "1"]
[TimeControl "40/5400+30:1800+30"]

{[%evp 18,55,22,2,19,-4,18,16,18,8,38,36,201,200,206,212,214,198,186,-429,-437,-412,-404,-405,-393,-533,-381,-548,-158,-148,-154,-648,-202,-487,-470,-457,-456,-753,-768,-723]} 1. d4 {[%emt 0:00:03]} d5 {[%emt 0:00:08]} 2. c4 {[%emt 0:00:06]} e6 {[%emt 0:00:05]} 3. e3 {[%emt 0:00:05]} Nf6 {[%emt 0:00:53]} 4. Nf3 {[%emt 0:00:44]} c5 {[%emt 0:01:46]} 5. Nc3 {[%emt 0:00:11]} Nc6 {[%emt 0:00:34]} 6. a3 {[%emt 0:00:11]} a6 {[%emt 0:09:14]} 7. dxc5 {[%emt 0:00:25]} Bxc5 {[%emt 0:00:12]} 8. b4 {[%emt 0:00:07]} Bd6 {[%emt 0:02:09]} 9. Bb2 {[%emt 0:02:38]} O-O {[%emt 0:01:34]} 10. Rc1 {[%emt 0:06:09][%cal Rc4d5]} Re8 {[%emt 0:10:23] [#] D40: Queen's Gambit Declined: Semi-Tarrasch with 5 e3.} (10... Ne5 $5 {[%cal Re5c4]}) 11. Qc2 $146 {[%emt 0:15:28]} ({Predecessor:} 11. Be2 dxc4 12. Bxc4 b5 13. Bd3 Bb7 14. O-O e5 15. Ne4 Nxe4 16. Bxe4 Rc8 17. Qd3 h6 18. Rfd1 {1-0 (30) Garnier,R (2162)-Reides,M (2338) Buenos Aires 2015}) 11... dxc4 {[%emt 0:12:18] Strongly threatening ...b5.} 12. Bxc4 {[%emt 0:00:07]} (12. Ne4 {is more complex.} Nxe4 13. Qxe4 Nxb4 14. axb4 Bxb4+ 15. Bc3) 12... b5 {[%emt 0:00:47] The position is equal.} 13. Bd3 {[%emt 0:12:06] Black must now prevent Ne4.} Bb7 {[%emt 0:00:30]} 14. Ne4 {[%emt 0:25:48]} Bxb4+ $2 {[%emt 0:28:18]} 15. axb4 $18 {[%emt 0:01:24]} Nxb4 {[%emt 0:00:06]} 16. Nxf6+ {[%emt 0:01:23]} Kh8 {[%emt 0:04:35]} 17. Qc3 {[%emt 0:08:05]} (17. Nxe8 Nxc2+ 18. Bxc2 Qa5+ 19. Ke2 Rxe8 $11) 17... Nxd3+ {[%emt 0:02:04] [#]} 18. Kf1 $4 {[%emt 0:00:40][%mdl 8192] [#]} (18. Qxd3 $3 $18 {[%mdl 512] was the only winning move.} Qxd3 19. Ne5 gxf6 20. Nxd3) 18... Rc8 $1 $19 {[%emt 0:02:38]} ({Inferior is} 18... gxf6 19. Rd1 Be4 20. Ng5 $15) ({Worse is} 18... Qxf6 19. Qxf6 gxf6 20. Bxf6+ Kg8 21. Rc7 $17) 19. Qd2 {[%emt 0:12:04]} Rxc1+ {[%emt 0:00:46]} 20. Bxc1 {[%emt 0:00:12]} gxf6 {[%emt 0:00:14]} 21. Ba3 {[%emt 0:03:20]} Qd5 {[%emt 0:05:38]} 22. Ke2 {[%emt 0:05:37]} (22. Ne1 $142 Ne5 23. Qxd5 Bxd5 24. f3) 22... Ne5 $2 {[%emt 0:00:26]} (22... Rd8 $19 {is more deadly.} 23. Qc3 Kg8) 23. Nxe5 {[%emt 0:04:00]} fxe5 {[%emt 0:00:49]} 24. Bb2 $2 {[%emt 0:00:57]} (24. Qxd5 $17 Bxd5 25. Ra1) 24... f6 $2 {[%emt 0:05:02]} (24... Qxg2 {( -> ...Qf3+)} 25. Bxe5+ Kg8) 25. Rg1 $2 {[%emt 0:00:30]} (25. Qxd5 {might work better.} Bxd5 26. Ra1) 25... Qc4+ {[%emt 0:01:07] Black is clearly winning.} 26. Ke1 {[%emt 0:00:24]} Rc8 {[%emt 0:01:16]} 27. f4 {[%emt 0:00:25]} (27. f3 $142) 27... Qe4 {[%emt 0:00:40] aiming for ...Bd5.} 28. fxe5 {[%emt 0:00:00] Weighted Error Value: White=1.07/Black=0.65} 0-1

[Event "26th Womens ECCC 2022"]
[Site "Mayrhofen"]
[Date "2022.10.07"]
[Round "5.1"]
[White "Kashlinskaya, Alina"]
[Black "Bulmaga, Irina"]
[Result "1-0"]
[ECO "E49"]
[WhiteElo "2482"]
[BlackElo "2417"]
[Annotator "TA"]
[PlyCount "109"]
[EventDate "2022.10.03"]
[EventType "team-tourn"]
[EventCountry "AUT"]
[SourceTitle "playchess.com"]
[Source "ChessBase"]
[SourceQuality "1"]
[TimeControl "40/5400+30:1800+30"]

{[%evp 19,109,-14,0,0,0,28,12,0,0,0,6,5,12,0,23,23,100,102,122,128,100,110,144,116,123,98,235,243,232,240,247,229,244,234,240,239,256,251,280,274,295,265,268,272,322,256,374,376,407,420,411,398,412,406,414,412,372,264,304,309,306,302,488,485,475,472,785,834,1527,1552,6099,6011,5528,5629,5114,5114,29969,29970,29973,29974,29974,29975,29974,29975,29975,29976,29977,29977,29976,29977,29986,29979]} 1. d4 {[%emt 0:00:03]} Nf6 {[%emt 0:00:07]} 2. c4 {[%emt 0:00:04]} e6 {[%emt 0:00:06]} 3. Nc3 {[%emt 0:00:04]} Bb4 {[%emt 0:00:06]} 4. e3 {[%emt 0:00:09]} O-O {[%emt 0:00:15]} 5. Bd3 {[%emt 0:00:07]} d5 {[%emt 0:00:23]} 6. a3 {[%emt 0:00:12]} Bxc3+ {[%emt 0:00:26]} 7. bxc3 {[%emt 0:00:04]} dxc4 {[%emt 0:00:15]} 8. Bxc4 {[%emt 0:00:04]} c5 {[%emt 0:00:17]} 9. Ne2 {[%emt 0:00:11]} Qc7 {[%emt 0:00:22]} 10. Bd3 {[%emt 0:00:15]} e5 {[%emt 0:03:28] 10...b6 is setting a new trend.} 11. dxe5 {[%emt 0:00:14] E49: Nimzo-Indian: Rubinstein: 5 Bd3 d5 6 a3 Bxc3+ 7 bxc3.} Qxe5 {[%emt 0:01:01]} 12. O-O {[%emt 0:00:25] [#]} Bf5 $146 {[%emt 0:09:58]} ({Predecessor:} 12... b6 13. Qc2 Rd8 14. Bb2 Bb7 15. c4 Qg5 16. Ng3 Nbd7 17. f4 Qg4 18. e4 Nf8 19. Bxf6 gxf6 {1-0 (29) Grischuk,A (2745)-Suleymanli,A (2537) Chess.com INT 2022}) 13. Bxf5 {[%emt 0:00:16] The position is equal.} Qxf5 {[%emt 0:00:07]} 14. f3 {[%emt 0:00:10]} Nc6 {[%emt 0:05:31]} 15. e4 {[%emt 0:00:11]} Qe6 {[%emt 0:01:35]} 16. Be3 {[%emt 0:00:32]} Rfd8 {[%emt 0:10:43]} 17. Qa4 {[%emt 0:06:02]} a6 {[%emt 0:09:37]} (17... b6 $11 {remains equal.}) 18. Bxc5 $16 {[%emt 0:20:55]} Rd2 {[%emt 0:22:41] [#] Threatens to win with ...b5.} 19. Nf4 $1 {[%emt 0:02:56]} Qe5 {[%emt 0:01:31][%csl LRc3,LRc5,LRf4]} 20. Be3 {[%emt 0:00:12]} Rd7 {[%emt 0:13:40]} 21. Qc2 {[%emt 0:10:52]} Rad8 {[%emt 0:00:54]} 22. Ne2 {[%emt 0:16:08]} Nd5 {[%emt 0:01:56] This costs Black the game.} (22... Qe6 $16) 23. Bd4 $18 {[%emt 0:01:32]} Nxd4 {[%emt 0:07:56]} 24. cxd4 {[%emt 0:00:09]} Qc7 {[%emt 0:07:35]} (24... Ne3 $2 25. Qc1 (25. dxe5 Nxc2 26. Ra2 Ne3 $16) 25... Qg5 26. Kf2 $18) 25. Rfc1 {[%emt 0:05:24][%cal Bf1c1,Bc1c2,Bc2c7][%mdl 32]} Qxc2 {[%emt 0:00:12]} 26. Rxc2 {[%emt 0:00:02]} Ne7 {[%emt 0:01:52]} 27. d5 {[%emt 0:02:24]} Nc8 {[%emt 0:00:52]} 28. Nd4 {[%emt 0:07:14]} Ne7 {[%emt 0:00:16]} 29. Rac1 {[%emt 0:01:41]} g5 {[%emt 0:00:14]} 30. Rc7 {[%emt 0:00:48]} Kg7 {[%emt 0:00:14]} 31. Nb3 {[%emt 0:01:59]} b5 {[%emt 0:00:46]} 32. Na5 {[%emt 0:01:39]} Kf6 {[%emt 0:00:54]} (32... Nxd5 $142 33. exd5 Rxc7 34. Rxc7 Rxd5) 33. Nb7 {[%emt 0:00:15]} Rxc7 {[%emt 0:00:32]} 34. Rxc7 {[%emt 0:00:05][%mdl 4096] Endgame KRN-KRN} Rc8 {[%emt 0:00:26]} 35. e5+ {[%emt 0:04:50]} Kxe5 {[%emt 0:00:03]} 36. Rxe7+ {[%emt 0:00:05]} Kxd5 {[%emt 0:00:06]} 37. Rxf7 {[%emt 0:04:47] KRN-KR} Rc3 {[%emt 0:00:06]} 38. Rf5+ {[%emt 0:01:08]} Kd4 {[%emt 0:01:24]} 39. Rxg5 {[%emt 0:13:36]} Rxa3 {[%emt 0:00:02]} 40. Nd8 {[%emt 0:00:09]} b4 $2 {[%emt 0:01:28]} (40... Rc3 {keeps fighting.} 41. Ne6+ Ke3 42. Re5+ Kd3) 41. Nc6+ {[%emt 0:31:01]} Kc3 {[%emt 0:03:36] [#] Hoping for ...b3.} 42. Rc5+ {[%emt 0:00:00]} Kb3 {[%emt 0:02:37]} (42... Kb2 $142 43. Nxb4 a5) 43. f4 {[%emt 0:00:00][%cal Bf3f4,Bf4f5,Bf5f6][%mdl 32] f5 is the strong threat.} Ra2 {[%emt 0:06:48]} 44. f5 {[%emt 0:00:00] White threatens f6 and mate.} Rd2 {[%emt 0:00:33]} 45. f6 {[%emt 0:00:00] White wants to mate with f7.} Rd1+ {[%emt 0:01:29]} 46. Kf2 {[%emt 0:00:00] Intending f7 and mate.} Rd6 {[%emt 0:00:10]} 47. Na5+ {[%emt 0:00:00]} Ka4 {[%emt 0:00:24]} 48. Rf5 {[%emt 0:00:00] White mates.} Rd8 {[%emt 0:00:32]} 49. Nb7 {[%emt 0:00:00]} Rf8 {[%emt 0:04:03]} 50. Nc5+ {[%emt 0:00:00]} Ka3 {[%emt 0:00:13]} 51. Rf3+ {[%emt 0:00:00]} Ka2 {[%emt 0:00:13]} 52. f7 {[%emt 0:00:00]} a5 {[%emt 0:00:11]} 53. Ne6 {[%emt 0:00:00]} Rxf7 {[%emt 0:03:18]} 54. Rxf7 {[%emt 0:00:00]} a4 {[%emt 0:00:16]} 55. Nc5 {[%emt 0:00:00] Weighted Error Value: White=0.09 (flawless) /Black=0.45} 1-0

[Event "26th Womens ECCC 2022"]
[Site "Mayrhofen"]
[Date "2022.10.07"]
[Round "5.2"]
[White "Saduakassova, Dinara"]
[Black "Kiolbasa, Oliwia"]
[Result "1/2-1/2"]
[ECO "D35"]
[WhiteElo "2434"]
[BlackElo "2404"]
[Annotator "TA"]
[PlyCount "75"]
[EventDate "2022.10.03"]
[EventType "team-tourn"]
[EventCountry "AUT"]
[SourceTitle "playchess.com"]
[Source "ChessBase"]
[SourceQuality "1"]
[TimeControl "40/5400+30:1800+30"]

{[%evp 15,75,18,19,11,24,18,17,0,0,0,13,4,18,9,16,0,35,0,12,13,20,11,18,0,37,30,46,45,37,43,36,44,51,43,71,27,47,10,30,24,30,28,24,43,57,17,32,3,3,0,0,0,0,0,36,0,8,0,22,0,4,0]} 1. c4 {[%emt 0:00:31]} e6 {[%emt 0:00:08]} 2. Nc3 {[%emt 0:00:04]} d5 {[%emt 0:00:10]} 3. d4 {[%emt 0:00:03]} Nf6 {[%emt 0:00:12]} 4. cxd5 {[%emt 0:00:16]} exd5 {[%emt 0:00:08]} 5. Bg5 {[%emt 0:00:10]} c6 {[%emt 0:00:15]} 6. e3 {[%emt 0:01:10]} h6 {[%emt 0:00:12]} 7. Bh4 {[%emt 0:00:09]} Be7 {[%emt 0:00:07]} 8. Bd3 {[%emt 0:01:10]} O-O {[%emt 0:00:13]} 9. Nge2 $1 {[%emt 0:04:23][%mdl 4] outshines the older 9.Qc2. D35: Queen's Gambit Declined: Exchange Variation.} Re8 {[%emt 0:00:11]} 10. O-O {[%emt 0:03:54]} Nbd7 {[%emt 0:00:11][%cal Bb8d7,Bd7f8,Bf8e6,Be6g5,Bg5e6][%mdl 32]} 11. a4 {[%emt 0:04:54]} Bd6 {[%emt 0:01:30][%cal Od6h2] [#]} 12. Bg3 $146 {[%emt 0:05:24]} ({Predecessor:} 12. Kh1 a5 13. Qd2 Qe7 14. Rae1 Bb8 15. Ng3 Ne4 16. Bxe4 Qxh4 17. Bf5 g6 18. Bxd7 Bxd7 {½-½ (57) Korobov,A (2672)-Heberla,B (2562) Bratislava 2022}) 12... Bxg3 {[%emt 0:09:35]} 13. Nxg3 {[%emt 0:00:12]} a5 {[%emt 0:00:07]} 14. Qd2 {[%emt 0:04:58]} Nf8 {[%emt 0:04:08]} 15. Rad1 {[%emt 0:02:41]} Ne6 {[%emt 0:20:10]} 16. Bc2 {[%emt 0:02:41]} Ng5 {[%emt 0:14:56]} 17. f3 {[%emt 0:07:14]} Qb6 {[%emt 0:02:22]} 18. h4 {[%emt 0:12:41]} Ne6 {[%emt 0:00:12]} 19. Nf5 {[%emt 0:05:49]} Bd7 {[%emt 0:04:24]} 20. e4 {[%emt 0:04:02]} c5 {[%emt 0:12:15]} (20... Qxb2 $2 21. e5 Nf4 22. Nxh6+ (22. exf6 Bxf5 23. Bxf5 Qxd2 $18) (22. Rb1 $2 Qxc3 23. Qxc3 Ne2+ 24. Kf2 Nxc3 $17) 22... Kf8 23. exf6 $18) 21. Nxd5 {[%emt 0:05:57]} (21. e5 {keeps more tension.} cxd4 22. Qf2 Nh5 23. Nxd5 Qc5 24. Be4) 21... Nxd5 {[%emt 0:00:14]} 22. exd5 {[%emt 0:00:04]} Nxd4 {[%emt 0:03:26]} 23. Nxd4 {[%emt 0:00:16]} cxd4 {[%emt 0:00:04]} 24. Qxd4 {[%emt 0:00:15]} Qd6 {[%emt 0:03:59]} 25. Rf2 {[%emt 0:04:37]} Rac8 {[%emt 0:05:20]} 26. Bb1 {[%emt 0:04:31]} Rc5 {[%emt 0:03:09]} 27. Rc2 {[%emt 0:03:02]} Rxc2 {[%emt 0:13:05]} 28. Bxc2 {[%emt 0:00:10]} b5 {[%emt 0:00:14]} 29. axb5 {[%emt 0:07:36]} Bxb5 {[%emt 0:00:10]} 30. Be4 {[%emt 0:03:21]} a4 {[%emt 0:00:32]} 31. Kf2 {[%emt 0:05:57]} Bd7 {[%emt 0:01:12]} 32. Bd3 {[%emt 0:01:40]} Rb8 {[%emt 0:00:37]} 33. Rc1 {[%emt 0:01:22][%cal Bd1c1,Bc1c2,Bc2e2][%mdl 32]} h5 {[%emt 0:01:37]} 34. Rc2 {[%emt 0:01:21]} Re8 {[%emt 0:01:31]} 35. Re2 {[%emt 0:00:15]} Rb8 $1 {[%emt 0:00:28] The position is equal.} 36. Rc2 {[%emt 0:01:20]} Re8 {[%emt 0:00:03]} 37. Re2 {[%emt 0:01:07]} Rb8 $1 {[%emt 0:00:05]} 38. Rc2 {[%emt 0:01:38] Weighted Error Value: White=0.15 (very precise) /Black=0.10 (very precise)} 1/2-1/2

[Event "26th Womens ECCC 2022"]
[Site "Mayrhofen"]
[Date "2022.10.07"]
[Round "5.3"]
[White "Antolak, Julia"]
[Black "Atalik, Ekaterina"]
[Result "0-1"]
[ECO "C60"]
[WhiteElo "2315"]
[BlackElo "2406"]
[Annotator "TA"]
[PlyCount "70"]
[EventDate "2022.10.03"]
[EventType "team-tourn"]
[EventCountry "AUT"]
[SourceTitle "playchess.com"]
[Source "ChessBase"]
[SourceQuality "1"]
[TimeControl "40/5400+30:1800+30"]

{[%evp 9,70,13,13,6,35,8,5,0,27,0,0,0,55,54,124,24,25,-15,-33,-56,-41,-49,-42,-60,-50,-60,8,8,1,0,7,2,9,8,5,30,19,2,26,-36,-43,-268,-267,-264,-263,-300,-297,-309,-299,-276,-264,-409,-398,-415,-412,-452,-442,-426,-354,-646,-638,-602,-587]} 1. e4 {[%emt 0:00:03]} e5 {[%emt 0:00:17]} 2. Nf3 {[%emt 0:00:06]} Nc6 {[%emt 0:00:12]} 3. Bb5 {[%emt 0:00:19]} g6 {[%emt 0:00:33]} 4. d4 {[%emt 0:01:06]} exd4 {[%emt 0:01:10]} 5. c3 {[%emt 0:00:16]} dxc3 {[%emt 0:01:13]} 6. Nxc3 {[%emt 0:01:20] C60: Ruy Lopez: Unusual Black 3rd moves and 3...g6.} Bg7 {[%emt 0:00:38]} 7. Bg5 {[%emt 0:01:06][%mdl 1024] White has compensation.} f6 {[%emt 0:01:13]} 8. Bh4 {[%emt 0:16:06][%cal Oe4e5] The position is equal.} d6 {[%emt 0:06:42] Prevents e5.} 9. O-O {[%emt 0:05:22][%cal Oe4e5] [#]} (9. e5 {keeps more tension.} dxe5 10. Qxd8+ Kxd8 11. Rd1+) 9... Nge7 $146 ({Predecessor:} 9... Bd7 10. Nd5 Ne5 11. Bxd7+ Qxd7 12. Nd4 c6 13. f4 cxd5 14. exd5 Ng4 15. Rc1 Rc8 {0-1 (52) Brendel,B (2111)-Stoyanov,P (2269) Berkel 2003}) 10. Qb3 {[%emt 0:11:32][%cal Oe4e5]} Bd7 {[%emt 0:08:48]} (10... a6 $11 11. Bc4 Qd7) 11. Rad1 $1 $14 {[%emt 0:10:37][%cal Oe4e5] e5! is the strong threat.} Na5 {[%emt 0:07:11] [#]} (11... g5 $14) 12. Qc2 {[%emt 0:01:02]} ({Not} 12. Qe6 g5 13. Bxd7+ Qxd7 14. Qxd7+ Kxd7 $17) (12. Qa3 $1 $16 {[%cal Ra3a5]}) 12... O-O $11 {[%emt 0:05:00]} 13. Be2 {[%emt 0:05:16][%cal Oe4e5]} (13. e5 $5) 13... Nac6 {[%emt 0:06:52] Prevents e5.} 14. b4 {[%emt 0:07:39]} a6 {[%emt 0:02:51]} 15. a4 {[%emt 0:00:42]} g5 $1 {[%emt 0:06:35][%cal Bg6g5,Bg5g4][%mdl 32]} 16. Bg3 {[%emt 0:00:05]} g4 $1 {[%emt 0:00:37]} 17. Nh4 {[%emt 0:04:28]} Kh8 {[%emt 0:07:52]} (17... f5 $1 $15 18. exf5 Nxf5 19. Nxf5 Bxf5) 18. b5 {[%emt 0:05:58]} axb5 {[%emt 0:00:06]} 19. axb5 {[%emt 0:00:03]} Ne5 {[%emt 0:00:25]} 20. b6 {[%emt 0:01:37]} f5 {[%emt 0:05:24]} 21. exf5 {[%emt 0:00:46]} Nxf5 {[%emt 0:00:53]} 22. bxc7 {[%emt 0:04:11]} Qxc7 {[%emt 0:00:31]} 23. Nxf5 {[%emt 0:00:05]} Bxf5 {[%emt 0:00:24]} 24. Qb3 {[%emt 0:00:19]} (24. Qd2 $11) 24... Qc5 $15 {[%emt 0:13:10] [#] Hoping for ...Ra3.} 25. Na4 $2 {[%emt 0:06:10] Loses the game.} (25. Rd5 $1 $15 Ra3 26. Rxc5 Rxb3 27. Rc7) 25... Qc2 $19 {[%emt 0:00:19]} 26. Qxc2 {[%emt 0:01:50]} Bxc2 {[%emt 0:00:04]} 27. Nb6 {[%emt 0:00:03]} Bxd1 {[%emt 0:00:19]} 28. Rxd1 {[%emt 0:00:05]} Ra2 {[%emt 0:01:35]} 29. Bf1 {[%emt 0:00:23]} Rb2 {[%emt 0:02:33]} 30. Rxd6 {[%emt 0:01:28]} (30. Na4 {keeps fighting.} Rb4 31. Nc3) 30... Nf7 {[%emt 0:01:21]} 31. Re6 {[%emt 0:00:26]} Ng5 {[%emt 0:01:35]} 32. Re5 {[%emt 0:00:52]} Rxb6 {[%emt 0:02:09]} 33. Rxg5 {[%emt 0:00:05]} Rb1 {[%emt 0:00:43] And now ...Rd8 would win.} 34. Rxg4 $2 {[%emt 0:01:06]} (34. Rb5 Rd1 35. Rxb7) 34... Rd8 {[%emt 0:01:29] ( -> ...Rdd1)} 35. Re4 {[%emt 0:00:51]} h6 {[%emt 0:01:18] Weighted Error Value: White=0.45/Black=0.13 (very precise)} 0-1